bitfinex/quotes_ETHUSD_20240603
["timestamp","ask_amount","ask_price","bid_price","bid_amount"]
[1717452069509,2.65205,3770.7,3770.3,0.599]
[1717452070961,2.65205,3770.7,3770.2,0.599]
[1717452073652,2.3715,3770.8,3770.2,0.599]
[1717452073653,2.65224,3770.4,3770.2,0.599]
[1717452076098,2.65224,3770.4,3770.1,0.599]
[1717452076342,2.65224,3770.4,3769.4,2.65288]
[1717452076630,2.65224,3770.4,3770.1,0.599]
[1717452081746,2.65224,3770.4,3769.4,2.65288]
[1717452082049,2.65182,3771.0,3769.9,0.599]
[1717452082050,5.03704,3770.2,3769.9,0.599]
[1717452082258,5.540744,3770.2,3769.9,0.599]
[1717452083003,5.03704,3770.2,3769.9,0.599]
[1717452083561,5.03704,3770.2,3769.4,3.97414577]
[1717452083694,5.03704,3770.2,3769.8,0.599]
[1717452084347,2.6526,3769.9,3769.4,0.599]
[1717452084500,3.15632,3769.9,3769.3,0.599]
[1717452084836,2.6528,3769.6,3768.8,2.4941]
[1717452085035,2.6528,3769.6,3769.4,0.599]
[1717452087838,2.6528,3769.6,3768.7,2.65343]
[1717452088230,2.6528,3769.6,3769.3,0.599]
[1717452088431,3.209402,3769.6,3769.3,0.599]
[1717452089514,3.209402,3769.6,3768.7,2.65343]
[1717452089706,3.209402,3769.6,3769.3,0.599]
[1717452092323,3.209402,3769.6,3768.7,2.65343]
[1717452092530,3.209402,3769.6,3769.2,0.599]
[1717452092851,0.5618902,3769.5,3769.2,0.599]
[1717452093253,0.5618902,3769.5,3768.7,2.65343]
[1717452093254,2.65294,3769.4,3768.7,2.65343]
[1717452093409,2.65294,3769.4,3769.1,0.599]
[1717452095170,2.65294,3769.4,3768.7,2.65343]
[1717452095171,2.65294,3769.4,3769.3,0.599]
[1717452095465,2.65294,3769.4,3769.2,0.599]
[1717452096779,3.159184,3769.4,3768.7,2.65343]
[1717452097069,2.65294,3769.4,3769.2,0.599]
[1717452097272,2.65294,3769.4,3768.7,2.65343]
[1717452097426,2.65294,3769.4,3769.2,0.599]
[1717452097626,2.65294,3769.4,3769.0,0.599]
[1717452098268,2.65294,3769.4,3768.7,2.65343]
[1717452098672,2.65294,3769.4,3769.1,0.599]
[1717452098973,3.31813572,3769.4,3769.1,0.599]
[1717452099271,3.31813572,3769.4,3768.6,2.3922]
[1717452099472,3.31813572,3769.4,3768.8,0.599]
[1717452099680,2.65308,3769.2,3768.3,2.65367]
[1717452099977,2.65308,3769.2,3769.0,0.599]
[1717452100133,0.56087757,3769.1,3769.0,0.599]
[1717452100935,1.58951722,3769.5,3768.6,2.65349]
[1717452100936,2.2905,3769.5,3768.6,2.65349]
[1717452101129,7.94337,3769.5,3769.4,0.599]
[1717452101357,7.94337,3769.5,3769.2,0.599]
[1717452104610,7.94337,3769.5,3768.6,2.65349]
[1717452104765,7.94337,3769.5,3769.2,0.599]
[1717452104967,8.89665872,3769.5,3769.2,0.599]
[1717452107091,6.60615872,3769.5,3769.2,0.599]
[1717452108531,2.65309,3769.2,3768.6,2.3826]
[1717452108827,2.65309,3769.2,3769.1,0.599]
[1717452108988,2.65309,3769.2,3768.6,2.3826]
[1717452109189,2.65309,3769.2,3769.1,0.599]
[1717452109432,3.31372787,3769.2,3769.1,0.599]
[1717452109620,2.65309,3769.2,3769.1,0.599]
[1717452110088,2.65309,3769.2,3768.6,2.3826]
[1717452110295,2.65309,3769.2,3769.1,0.599]
[1717452111743,1.58931742,3769.5,3769.1,1.92026577]
[1717452112032,2.2505,3770.4,3769.4,0.599]
[1717452112033,1.58931742,3770.2,3769.4,0.599]
[1717452112202,1.58931742,3770.2,3769.2,2.2747]
[1717452112203,0.57338171,3770.1,3769.9,0.599]
[1717452112404,2.65238,3770.2,3769.9,0.599]
[1717452113193,2.65238,3770.2,3770.1,0.599]
[1717452116064,4.24148742,3770.5,3770.1,0.599]
[1717452116366,4.5265412,3770.4,3770.1,0.599]
[1717452116575,1.58931742,3770.5,3770.2,1.32126577]
[1717452116735,2.65165,3771.3,3770.4,2.65223]
[1717452116736,1.58931742,3770.9,3770.4,2.65223]
[1717452117064,2.65165,3771.3,3770.8,0.599]
[1717452117233,2.65165,3771.3,3771.1,0.599]
[1717452117584,2.916815,3771.3,3771.1,0.599]
[1717452117731,2.916815,3771.3,3770.4,4.58825565]
[1717452117938,2.916815,3771.3,3771.0,0.599]
[1717452119233,2.65165,3771.3,3771.2,0.599]
[1717452120177,2.65165,3771.3,3770.4,2.65223]
[1717452120383,2.65165,3771.3,3771.2,0.599]
[1717452122952,7.94196,3771.7,3771.2,0.599]
[1717452123133,3.0,3771.6,3771.2,0.599]
[1717452123367,3.794196,3771.6,3771.2,0.599]
[1717452125747,3.794196,3771.6,3771.4,0.599]
[1717452127398,2.65136,3771.7,3771.4,0.599]
[1717452127617,2.65136,3771.7,3771.6,0.599]
[1717452127744,8.01839,3772.1,3771.6,0.599]
[1717452130400,8.01839,3772.1,3771.8,0.599]
[1717452130553,2.65109,3772.1,3771.8,0.599]
[1717452130758,2.65081,3772.5,3772.0,0.599]
[1717452131080,2.65081,3772.5,3772.4,0.599]
[1717452131948,5.65081,3772.5,3772.4,0.599]
[1717452136595,2.65098,3772.2,3771.4,2.3112]
[1717452136828,2.9885,3772.4,3771.4,0.599]
[1717452137048,2.65138,3771.7,3771.4,0.599]
[1717452138619,2.65138,3771.7,3771.6,0.599]
[1717452139339,2.65138,3771.7,3770.8,2.4372]
[1717452139999,2.65138,3771.7,3771.4,0.599]
[1717452140201,0.265138,3771.6,3770.8,2.4372]
[1717452140407,2.65148,3771.5,3770.4,2.2562]
[1717452140607,0.265138,3771.6,3769.9,2.789]
[1717452140608,2.65193,3770.9,3770.0,2.3121]
[1717452140803,2.65193,3770.9,3770.0,3.63336577]
[1717452141105,2.65193,3770.9,3770.6,0.599]
[1717452141339,2.65193,3770.9,3770.7,0.599]
[1717452141845,2.65193,3770.9,3770.0,3.63336577]
[1717452141846,2.65193,3770.9,3770.2,1.444]
[1717452142046,2.65193,3770.9,3770.3,1.32126577]
[1717452151334,2.65164,3771.3,3770.5,1.444]
[1717452151561,3.90689755,3771.7,3770.9,1.444]
[1717452151562,9.97138,3771.7,3770.9,1.444]
[1717452151883,9.97138,3771.7,3771.0,4.08236577]
[1717452155371,2.65138,3771.7,3771.0,4.08236577]
[1717452162050,2.65138,3771.7,3771.5,0.601]
[1717452162252,2.65171,3771.2,3770.6,0.55367005]
[1717452162541,2.65171,3771.2,3770.3,5.00284]
[1717452162542,2.65171,3771.2,3770.3,4.28664583]
[1717452162848,2.65171,3771.2,3770.9,0.601]
[1717452163048,2.65171,3771.2,3771.1,0.601]
[1717452164276,2.65191,3770.9,3770.3,3.73297578]
[1717452164483,2.65166,3771.3,3770.8,0.601]
[1717452164637,2.65166,3771.3,3771.2,0.601]
[1717452164840,2.65166,3771.3,3771.0,0.601]
[1717452165466,2.65166,3771.3,3770.4,5.35578746]
[1717452165637,2.65166,3771.3,3770.5,1.90792543]
[1717452165842,2.65166,3771.3,3771.1,0.601]
[1717452168109,5.13769,3771.7,3770.8,0.601]
[1717452168407,2.65184,3771.0,3770.2,2.4485]
[1717452168569,2.65184,3771.0,3770.9,0.601]
[1717452170339,2.6516,3771.4,3770.9,0.601]
[1717452170473,2.6516,3771.4,3771.1,0.601]
[1717452172090,2.65132,3771.7,3771.3,0.601]
[1717452172276,2.65132,3771.7,3771.5,0.601]
[1717452177040,2.65104,3772.1,3771.5,0.601]
[1717452177199,2.65104,3772.1,3771.8,0.601]
[1717452180942,19.5,3772.7,3772.0,3.0197]
[1717452181100,2.65053,3772.9,3772.6,0.601]
[1717452187066,2.65024,3773.3,3772.8,0.601]
[1717452187244,2.65024,3773.3,3773.2,0.601]
[1717452187640,7.32,3773.5,3773.2,0.601]
[1717452187972,7.32,3773.5,3773.4,0.601]
[1717452188344,12.18,3774.1,3773.5,2.3792]
[1717452188345,14.82966,3774.1,3773.5,2.3792]
[1717452188544,14.82966,3774.1,3774.0,0.601]
[1717452188545,2.64966,3774.1,3774.0,0.601]
[1717452189874,2.64966,3774.1,3773.5,2.3792]
[1717452190368,7.32,3774.2,3773.5,2.3792]
[1717452190557,7.32,3774.2,3773.5,3.70046577]
[1717452191692,2.2559,3774.6,3773.5,3.70046577]
[1717452191693,7.32,3774.6,3773.8,1.441]
[1717452191840,7.32,3774.6,3773.8,2.76226577]
[1717452192533,2.64911,3774.9,3774.0,2.64964]
[1717452192738,2.64911,3774.9,3774.2,1.441]
[1717452193093,2.64911,3774.9,3774.3,1.32126577]
[1717452193384,2.64911,3774.9,3774.2,1.441]
[1717452193937,3.18441439,3774.9,3774.2,1.441]
[1717452194137,3.18441439,3774.9,3774.0,2.64964]
[1717452194334,3.18441439,3774.9,3774.1,1.32126577]
[1717452195486,2.64931,3774.6,3773.8,1.441]
[1717452195683,2.64954,3774.3,3773.4,2.3247]
[1717452195984,3.0,3774.2,3772.8,2.6505]
[1717452196185,2.3502,3774.2,3772.9,1.32126577]
[1717452196351,2.64995,3773.7,3772.9,1.32126577]
[1717452196803,2.65015,3773.4,3772.9,1.32126577]
[1717452201936,2.64988,3773.8,3772.9,1.32126577]
[1717452202146,2.64988,3773.8,3773.0,1.83818558]
[1717452202318,2.64988,3773.8,3773.1,1.32126577]
[1717452208295,7.32,3774.6,3773.8,2.64983]
[1717452208465,7.32,3774.6,3773.9,1.32126577]
[1717452208664,7.32,3774.6,3774.0,0.54120958]
[1717452208881,7.32,3774.6,3774.0,1.86247535]
[1717452210394,7.32,3774.6,3774.0,1.32126577]
[1717452213771,2.64926,3774.7,3774.0,1.32126577]
[1717452216785,2.64926,3774.7,3774.1,1.32126577]
[1717452218302,1.59067781,3774.9,3774.1,3.97086577]
[1717452218508,4.59067781,3774.9,3774.1,3.97086577]
[1717452218701,4.59067781,3774.9,3774.2,0.63919658]
[1717452218903,4.59067781,3774.9,3774.3,1.32126577]
[1717452220419,3.0,3774.9,3774.3,1.32126577]
[1717452221354,4.59067781,3774.9,3774.3,1.32126577]
[1717452222232,3.0,3774.9,3774.3,1.32126577]
[1717452222437,4.59067781,3774.9,3774.3,1.32126577]
[1717452222818,4.59067781,3775.0,3774.3,1.32126577]
[1717452223967,4.59067781,3775.0,3774.7,0.6]
[1717452225152,3.0,3775.0,3774.7,0.6]
[1717452227059,4.59059972,3775.0,3774.7,0.6]
[1717452227261,3.0,3775.0,3774.7,0.6]
[1717452228322,4.23955275,3775.1,3774.9,0.6]
[1717452228585,4.23955275,3775.1,3774.8,1.32126577]
[1717452228586,2.64896,3775.1,3775.0,0.6]
[1717452230375,4.81215336,3775.1,3774.0,5.07077]
[1717452230537,4.23951215,3775.1,3774.7,0.6]
[1717452230722,2.64913,3774.9,3774.7,0.6]
[1717452231677,0.57265349,3774.8,3773.6,2.3294]
[1717452231828,2.64962,3774.2,3773.8,0.6]
[1717452232026,2.64962,3774.2,3774.0,0.6]
[1717452233067,2.64962,3774.2,3773.7,1.32126577]
[1717452233273,2.64962,3774.2,3774.1,0.6]
[1717452233870,2.64962,3774.2,3773.7,1.32126577]
[1717452238169,2.64962,3774.2,3773.7,3.26545819]
[1717452238383,2.64936,3774.5,3773.9,2.3636]
[1717452238579,2.64936,3774.5,3774.0,1.32126577]
[1717452242483,7.32,3774.7,3774.0,1.32126577]
[1717452242792,7.32,3774.7,3774.1,0.56196481]
[1717452242998,7.32,3774.7,3774.2,1.32126577]
[1717452243297,2.64915,3774.8,3774.2,1.32126577]
[1717452243654,2.64936,3774.5,3773.9,0.55367005]
[1717452243995,2.64936,3774.5,3773.6,1.38111233]
[1717452243996,0.57270587,3774.4,3773.6,1.38111233]
[1717452244161,0.57270587,3774.4,3773.7,2.24206943]
[1717452244495,1.59072159,3774.4,3773.7,1.32126577]
[1717452244674,0.57272379,3774.3,3773.7,1.32126577]
[1717452244859,3.22228379,3774.3,3773.7,1.32126577]
[1717452245060,2.64956,3774.3,3773.7,1.32126577]
[1717452245700,2.64973,3774.0,3773.3,1.93478238]
[1717452245924,2.64991,3773.8,3773.3,2.79579396]
[1717452246095,2.6501,3773.5,3773.2,1.38111233]
[1717452246295,2.65031,3773.2,3772.9,0.55367005]
[1717452246496,2.65031,3773.2,3772.5,1.3813693]
[1717452246688,2.65031,3773.2,3772.6,2.24237038]
[1717452247046,2.65031,3773.2,3772.6,1.32126577]
[1717452247606,2.65031,3773.2,3772.3,1.93503935]
[1717452247922,2.65031,3773.2,3772.4,2.24241125]
[1717452248321,2.65031,3773.2,3772.5,0.92115673]
[1717452248536,2.65031,3773.2,3772.5,2.2424225]
[1717452248744,2.65031,3773.2,3772.5,1.32126577]
[1717452250211,2.6505,3772.9,3772.2,0.55367005]
[1717452250408,2.6505,3772.9,3772.2,2.2424277]
[1717452250746,2.6505,3772.9,3772.3,0.92116193]
[1717452251544,2.6505,3772.9,3772.2,1.32126577]
[1717452253148,7.32,3773.3,3772.4,2.65082]
[1717452253376,2.64995,3773.7,3772.8,1.441]
[1717452253523,2.64995,3773.7,3772.9,1.32126577]
[1717452253710,7.32,3773.9,3773.3,1.441]
[1717452253905,7.32,3773.9,3773.4,1.46536577]
[1717452254854,7.32,3773.9,3773.0,0.55367005]
[1717452255054,2.4794,3773.8,3772.7,1.38141792]
[1717452255254,2.4794,3773.8,3772.5,0.55367005]
[1717452255411,4.64340085,3773.8,3772.5,1.32126577]
[1717452255605,0.57290653,3773.7,3772.5,1.32126577]
[1717452255804,0.57290653,3773.7,3772.1,1.38141792]
[1717452255805,2.6503,3773.2,3772.2,2.65093]
[1717452256057,7.32,3773.5,3772.2,1.32126577]
[1717452256362,3.0,3773.4,3772.2,1.32126577]
[1717452256914,2.65051,3772.9,3772.2,1.32126577]
[1717452263756,2.65093,3772.3,3771.6,1.38179454]
[1717452263956,2.65093,3772.3,3771.6,1.32126577]
[1717452266381,2.65093,3772.3,3771.2,2.65163]
[1717452266382,9.97067,3772.7,3771.7,1.32126577]
[1717452267788,2.2614,3772.4,3771.1,2.6517]
[1717452267979,3.21954,3772.4,3771.2,1.88727278]
[1717452269104,2.65114,3772.0,3771.2,1.88727278]
[1717452271560,2.65134,3771.7,3770.7,2.65198]
[1717452271748,2.65134,3771.7,3770.8,1.32126577]
[1717452272252,2.65134,3771.7,3770.9,2.65186]
[1717452272462,7.32,3772.0,3771.2,2.65167]
[1717452272750,7.32,3772.0,3770.4,0.55367005]
[1717452272751,7.32,3772.0,3771.3,4.13925935]
[1717452272951,7.32,3772.0,3771.3,1.71855935]
[1717452273257,7.32,3772.0,3771.3,1.32126577]
[1717452273958,2.6512,3771.9,3771.3,1.32126577]
[1717452274156,2.6512,3771.9,3771.0,2.65178]
[1717452274411,2.6512,3771.9,3771.1,1.32126577]
[1717452276316,7.32,3772.0,3770.4,2.4143]
[1717452276613,2.65161,3771.3,3770.5,1.32126577]
[1717452276798,6.1595,3771.9,3770.1,1.38220986]
[1717452276799,2.65208,3770.7,3770.1,1.38220986]
[1717452276969,2.65208,3770.7,3769.6,1.061351]
[1717452277174,2.65208,3770.7,3769.1,3.00377005]
[1717452277175,2.65208,3770.7,3769.7,1.32126577]
[1717452277604,2.917288,3770.7,3769.7,1.32126577]
[1717452277769,2.65208,3770.7,3769.7,1.32126577]
[1717452277971,2.65208,3770.7,3769.7,4.11026577]
[1717452278915,2.65208,3770.7,3769.7,6.76294577]
[1717452279385,7.32,3771.1,3770.0,2.789]
[1717452279570,7.32,3771.1,3769.2,0.55367005]
[1717452279571,11.33302455,3771.7,3770.1,7.11549235]
[1717452279769,11.33302455,3771.7,3770.2,1.441]
[1717452279770,2.4218,3771.7,3770.2,1.441]
[1717452279979,2.4218,3771.7,3770.3,1.32126577]
[1717452281024,2.65151,3771.5,3770.3,3.97353577]
[1717452281221,2.65151,3771.5,3770.4,1.06536358]
[1717452281430,2.65151,3771.5,3770.5,1.32126577]
[1717452283925,2.65151,3771.5,3770.6,2.65209]
[1717452284133,2.65151,3771.5,3770.7,1.32126577]
[1717452286275,2.65151,3771.5,3770.2,2.65232]
[1717452286477,2.6517,3771.2,3770.3,1.32126577]
[1717452287029,3.0,3771.8,3770.3,1.32126577]
[1717452287030,1.5910958,3771.3,3770.4,1.32126577]
[1717452287338,4.2426158,3771.5,3770.4,1.32126577]
[1717452287563,3.0,3771.4,3770.5,0.39735458]
[1717452287687,3.0,3771.4,3770.6,1.32126577]
[1717452289325,7.32,3771.6,3770.6,1.32126577]
[1717452290245,2.65122,3771.9,3770.6,1.32126577]
[1717452290406,2.65122,3771.9,3770.7,0.82286204]
[1717452290745,2.65122,3771.9,3770.8,1.32126577]
[1717452290903,2.65122,3771.9,3770.9,2.65185]
[1717452291111,2.65122,3771.9,3771.0,1.32126577]
[1717452292924,4.81543201,3771.9,3771.0,1.32126577]
[1717452293115,2.65138,3771.7,3771.0,1.32126577]
[1717452294366,2.65154,3771.4,3770.5,3.04945458]
[1717452294566,2.804639,3771.8,3770.1,0.55367005]
[1717452294567,2.4589,3771.3,3770.1,0.55367005]
[1717452294727,2.4589,3771.3,3770.2,1.32126577]
[1717452295050,4.45499538,3771.3,3770.2,1.32126577]
[1717452295966,2.65175,3771.1,3770.2,1.32126577]
[1717452298766,2.65219,3770.5,3769.7,3.20639005]
[1717452298979,2.4404,3770.5,3769.2,0.96906414]
[1717452299124,2.705619,3770.5,3769.3,2.70155534]
[1717452299315,0.5733456,3770.4,3769.3,1.77980797]
[1717452299663,4.2967148,3770.5,3769.3,1.77980797]
[1717452299664,2.705619,3770.5,3769.3,1.77980797]
[1717452299820,2.65239,3770.2,3769.3,4.43274797]
[1717452300776,1.5910958,3770.5,3769.5,2.6528]
[1717452300936,2.65213,3770.6,3769.6,1.32126577]
[1717452301323,2.65213,3770.6,3769.7,2.65269]
[1717452301522,2.65213,3770.6,3769.8,1.32126577]
[1717452303729,2.65234,3770.3,3769.4,1.441]
[1717452303875,2.65234,3770.3,3769.5,1.32126577]
[1717452305681,2.65254,3770.0,3768.9,3.20690005]
[1717452305938,2.65254,3770.0,3769.0,1.32126577]
[1717452305939,3.144764,3770.0,3769.0,1.32126577]
[1717452307055,1.5910958,3770.3,3769.1,5.55126577]
[1717452307191,1.5910958,3770.3,3769.5,1.441]
[1717452307393,12.24068,3770.8,3769.7,2.65268]
[1717452307649,1.5910958,3771.1,3770.0,2.4994]
[1717452307796,0.57326696,3771.1,3770.1,1.32126577]
[1717452308015,12.24043,3771.2,3770.2,0.52616658]
[1717452308338,12.24043,3771.2,3770.3,1.32126577]
[1717452309964,1.5910958,3771.5,3770.4,2.65223]
[1717452310137,1.5910958,3771.5,3770.5,1.32126577]
[1717452310138,3.0,3771.5,3770.5,1.32126577]
[1717452311144,3.0,3771.5,3770.5,1.771232]
[1717452311356,9.97144,3771.6,3770.6,2.65206]
[1717452311533,9.97144,3771.6,3770.7,1.32126577]
[1717452311930,2.65182,3771.0,3770.3,1.38237533]
[1717452312139,2.65182,3771.0,3770.4,0.9215302]
[1717452312331,0.265182,3770.9,3770.1,0.55367005]
[1717452312556,0.265182,3770.9,3770.0,2.65251]
[1717452312765,0.265182,3770.9,3770.0,3.97377577]
[1717452313560,1.5910958,3771.3,3770.2,2.65235]
[1717452313762,4.2426758,3771.4,3770.3,1.32126577]
[1717452313928,4.2426758,3771.4,3770.4,2.6522]
[1717452313929,2.65158,3771.4,3770.4,2.6522]
[1717452314134,2.65158,3771.4,3770.5,1.32126577]
[1717452314437,4.04744758,3771.4,3770.5,1.32126577]
[1717452314647,1.39586758,3771.4,3770.4,2.6522]
[1717452314848,1.5910958,3770.8,3769.4,0.55367005]
[1717452315162,2.44445833,3771.3,3769.6,2.3451]
[1717452315163,4.2431558,3770.7,3769.6,2.3451]
[1717452315338,5.4976,3771.1,3769.7,3.25556052]
[1717452315517,5.4976,3771.1,3769.8,1.47547981]
[1717452315719,2.65198,3770.8,3769.9,2.79674558]
[1717452315919,2.65198,3770.8,3769.9,1.32126577]
[1717452316145,3.62604758,3770.8,3769.9,1.32126577]
[1717452316534,1.5910958,3771.1,3770.3,2.2865]
[1717452316731,1.5910958,3771.4,3770.1,1.38248352]
[1717452316929,2.65199,3770.8,3770.2,0.9216511]
[1717452317262,2.65199,3770.8,3769.8,5.76960508]
[1717452317263,1.59079708,3771.5,3770.3,3.68387585]
[1717452317484,4.03639708,3771.6,3770.4,0.92161008]
[1717452317682,4.03639708,3771.6,3770.4,3.57381008]
[1717452317683,0.40363971,3771.5,3770.4,3.57381008]
[1717452317884,0.40363971,3771.5,3770.2,1.93615357]
[1717452317885,0.97681024,3771.5,3770.2,1.93615357]
[1717452318184,0.97681024,3771.5,3770.3,0.92159518]
[1717452318389,1.59079708,3771.4,3770.3,0.92159518]
[1717452318542,2.65196,3770.8,3770.3,0.92159518]
[1717452318743,2.65196,3770.8,3770.1,1.441]
[1717452318942,2.65196,3770.8,3770.2,0.92164474]
[1717452319184,2.917156,3770.8,3770.1,1.441]
[1717452319390,2.65217,3770.5,3769.9,1.38246998]
[1717452319543,2.65217,3770.5,3770.0,0.92171277]
[1717452319879,2.65217,3770.5,3769.6,2.65274]
[1717452320041,2.65217,3770.5,3769.7,0.92176724]
[1717452321244,2.3919,3770.8,3769.8,3.97392577]
[1717452321589,2.65194,3770.9,3770.1,1.441]
[1717452321897,2.3919,3771.2,3769.9,1.38246998]
[1717452321898,3.98275094,3771.0,3769.9,1.38246998]
[1717452322055,1.59085094,3770.8,3769.5,0.55367005]
[1717452322254,2.65255,3770.0,3769.5,1.47543401]
[1717452322467,2.65255,3770.0,3769.2,1.9362793]
[1717452322671,2.65255,3770.0,3769.3,2.24311843]
[1717452322871,2.65255,3770.0,3769.4,0.92185266]
[1717452323287,2.65255,3770.0,3769.3,1.32126577]
[1717452325884,2.65274,3769.7,3769.1,2.82360925]
[1717452326084,2.65274,3769.7,3769.2,0.92190035]
[1717452326320,2.65274,3769.7,3769.1,1.441]
[1717452328517,2.6525,3770.1,3769.2,1.32126577]
[1717452329105,2.6525,3770.1,3769.2,2.24310802]
[1717452329417,2.6525,3770.1,3769.3,1.73061778]
[1717452329713,2.6525,3770.1,3769.3,2.1300413]
[1717452330801,2.6525,3770.1,3769.3,1.32126577]
[1717452331003,2.65267,3769.8,3769.1,1.441]
[1717452331812,2.65282,3769.6,3768.8,1.38289086]
[1717452332010,0.27236824,3769.5,3768.8,1.32126577]
[1717452332208,2.65306,3769.3,3768.6,1.38294898]
[1717452332538,2.65306,3769.3,3768.1,3.20750005]
[1717452332734,2.2805,3769.6,3768.2,2.24334958]
[1717452332735,2.65317,3769.1,3768.2,2.24334958]
[1717452332893,2.65317,3769.1,3768.3,0.92208381]
[1717452333093,2.65317,3769.1,3768.4,1.32126577]
[1717452333504,0.0686013,3769.0,3768.4,1.32126577]
[1717452334814,2.4452,3768.8,3768.0,1.38312572]
[1717452335074,0.27217713,3768.9,3767.5,0.55367005]
[1717452335075,2.4452,3767.8,3767.5,0.55367005]
[1717452335226,2.65413,3767.7,3767.5,0.55367005]
[1717452335427,2.65442,3767.3,3766.0,4.0963]
[1717452335657,2.65442,3767.3,3766.0,2.6553]
[1717452335825,0.0679418,3767.2,3766.2,1.441]
[1717452336222,2.65442,3767.3,3766.1,0.32089701]
[1717452336421,2.65442,3767.3,3766.1,1.76189701]
[1717452336422,0.06794096,3767.1,3766.1,1.76189701]
[1717452336657,2.65442,3767.3,3766.2,2.65516]
[1717452336959,0.06793769,3767.0,3766.3,0.4417057]
[1717452337160,0.06750195,3767.2,3766.3,0.4417057]
[1717452337330,0.06749321,3767.1,3766.3,0.4417057]
[1717452337733,2.65442,3767.3,3766.4,1.32126577]
[1717452338132,0.0677585,3767.2,3766.4,1.32126577]
[1717452338349,0.0677585,3767.2,3766.4,1.93926862]
[1717452339058,2.65458,3767.1,3766.4,0.61800285]
[1717452339268,2.72206515,3767.1,3766.2,2.65516]
[1717452339471,2.72206515,3767.1,3765.6,2.2965]
[1717452339472,2.65504,3766.5,3765.6,2.2965]
[1717452339769,2.65504,3766.5,3765.4,2.65574]
[1717452340066,0.06775147,3766.4,3765.6,1.441]
[1717452340271,0.06775147,3766.4,3765.4,2.65574]
[1717452341161,2.65516,3766.3,3765.0,2.65604]
[1717452341523,2.65526,3766.1,3765.0,2.65604]
[1717452341960,0.06679961,3766.0,3765.0,2.65604]
[1717452342168,0.06679961,3766.0,3765.3,1.441]
[1717452342367,0.06679961,3766.0,3765.1,0.42225188]
[1717452342668,0.06615891,3765.9,3765.1,0.42225188]
[1717452342862,2.65527,3766.1,3765.1,0.42225188]
[1717452343063,0.06601578,3765.8,3765.4,1.441]
[1717452343226,2.65497,3766.6,3765.5,0.409686]
[1717452343426,0.06403323,3765.7,3765.5,0.409686]
[1717452343628,2.65497,3766.6,3765.5,0.409686]
[1717452343879,0.06222168,3765.6,3764.8,0.1254788]
[1717452344079,1.87126577,3766.5,3764.8,0.1254788]
[1717452344080,2.65586,3765.3,3764.8,0.1254788]
[1717452344224,2.4375,3765.5,3764.8,0.1254788]
[1717452344225,2.65598,3765.1,3764.8,0.1254788]
[1717452344425,2.29536254,3765.2,3764.8,0.1254788]
[1717452344426,2.65611,3764.9,3764.8,0.1254788]
[1717452344826,2.71825476,3764.9,3764.8,0.1254788]
[1717452345225,0.06214476,3764.9,3764.8,0.1254788]
[1717452345428,5.65577,3765.4,3764.8,0.1254788]
[1717452345679,0.06211334,3764.9,3764.8,0.1254788]
[1717452345860,2.65593,3765.2,3764.8,0.1254788]
[1717452346032,0.06081449,3764.9,3764.8,0.1254788]
[1717452346366,2.65593,3765.2,3764.8,0.1254788]
[1717452346565,0.060663,3764.9,3764.8,0.1254788]
[1717452346768,2.65593,3765.2,3764.8,0.1254788]
[1717452346998,0.06081141,3764.9,3764.8,0.1254788]
[1717452347272,0.06078985,3764.9,3764.8,0.1254788]
[1717452347427,3.5462057,3765.2,3764.8,0.1254788]
[1717452347627,0.06078985,3764.9,3764.8,0.1254788]
[1717452347827,3.5462057,3765.2,3764.8,0.1254788]
[1717452348030,0.06078985,3764.9,3764.8,0.1254788]
[1717452348328,0.65462057,3765.1,3764.8,0.1254788]
[1717452348527,0.06078985,3764.9,3764.8,0.1254788]
[1717452348772,3.0,3765.4,3764.8,1.44674457]
[1717452348980,0.06078985,3764.9,3764.8,0.1254788]
[1717452349183,0.24375,3765.4,3764.8,0.1254788]
[1717452349348,3.24375,3765.4,3764.8,0.1254788]
[1717452349528,0.06081932,3765.3,3764.8,0.1254788]
[1717452350741,0.06081932,3765.3,3764.8,1.5664788]
[1717452350975,0.06081932,3765.3,3764.9,0.15664788]
[1717452351176,2.65551,3765.8,3764.8,1.5664788]
[1717452351479,9.97501,3766.5,3765.0,2.65604]
[1717452351678,0.06119387,3765.7,3765.1,1.32126577]
[1717452351831,9.97528,3766.1,3765.0,4.09704]
[1717452352040,0.06075957,3765.6,3765.0,4.09704]
[1717452352241,9.97528,3766.1,3765.0,4.51929188]
[1717452352447,0.06091881,3765.5,3765.0,4.51929188]
[1717452352675,9.97528,3766.1,3765.0,4.51929188]
[1717452352877,0.06090452,3765.4,3765.0,5.84055765]
[1717452353034,9.97528,3766.1,3765.0,5.84055765]
[1717452353234,0.06089022,3765.3,3765.0,4.09704]
[1717452353472,11.214378,3766.1,3765.0,4.09704]
[1717452353678,0.05884625,3765.2,3765.0,4.09704]
[1717452353978,11.214378,3766.1,3765.0,4.09704]
[1717452354476,0.05901911,3766.0,3765.0,4.09704]
[1717452354684,0.05901911,3766.0,3765.0,4.51929188]
[1717452354849,0.05901911,3766.0,3765.0,4.09704]
[1717452355050,2.65542,3765.9,3764.8,0.1254788]
[1717452355357,2.71431705,3765.9,3764.8,0.1254788]
[1717452355574,2.65555,3765.7,3764.8,0.1254788]
[1717452356079,0.0588942,3765.6,3764.8,0.1254788]
[1717452357052,0.0588942,3765.6,3764.8,2.88774457]
[1717452357250,2.65534,3766.0,3764.8,2.88774457]
[1717452357547,0.05872284,3765.5,3764.8,2.88774457]
[1717452357883,0.05870854,3765.4,3764.8,3.44215203]
[1717452358054,0.05870854,3765.4,3764.9,2.65609]
[1717452358256,2.65534,3766.0,3764.9,3.97735577]
[1717452358459,0.05868811,3765.3,3764.9,3.97735577]
[1717452358655,2.4157,3766.2,3764.9,3.97735577]
[1717452358874,1.27357,3766.1,3764.9,3.97735577]